[Event "Titled Tuesday Blitz January 31 Early 2023"]
[White "Dehtiarov, Roman"]
[Black "Ozen, Bahadir"]
[WhiteFideId "14186640"]
[BlackFideId "6337058"]
[WhiteElo "2289"]
[BlackElo "2369"]
[Result "0-1"]
[Round "07"]
[TimeControl "180+2"]
[Date "2023.01.31"]
[WhiteClock "0:00:02"]
[BlackClock "0:00:39"]

1. e4 {[%clk 0:03:00]}  d6 {[%clk 0:03:00]} 2. d4 {[%clk 0:03:00]}  Nf6 {[%clk 0:03:00]} 3. Nc3 {[%clk 0:02:59]}  e5 {[%clk 0:03:01]} 4. dxe5 {[%clk 0:02:59]}  dxe5 {[%clk 0:03:02]} 5. Qxd8+ {[%clk 0:02:59]}  Kxd8 {[%clk 0:03:03]} 6. Nf3 {[%clk 0:02:58]}  Bd6 {[%clk 0:02:59]} 7. Bg5 {[%clk 0:02:59]}  Nd7 {[%clk 0:02:58]} 8. O-O-O {[%clk 0:02:57]}  Ke8 {[%clk 0:02:58]} 9. Nb5 {[%clk 0:02:47]}  Ke7 {[%clk 0:02:58]} 10. Bc4 {[%clk 0:02:32]}  h6 {[%clk 0:02:47]} 11. Bxf6+ {[%clk 0:02:26]}  Nxf6 {[%clk 0:02:47]} 12. Rhe1 {[%clk 0:02:24]}  Bg4 {[%clk 0:02:36]} 13. Be2 {[%clk 0:02:14]}  a6 {[%clk 0:02:07]} 14. Nxd6 {[%clk 0:02:14]}  cxd6 {[%clk 0:02:08]} 15. Nh4 {[%clk 0:02:07]}  Be6 {[%clk 0:02:03]} 16. Kb1 {[%clk 0:01:56]}  Nxe4 {[%clk 0:01:55]} 17. f4 {[%clk 0:01:40]}  g5 {[%clk 0:01:42]} 18. Bf3 {[%clk 0:01:20]}  Nc5 {[%clk 0:01:38]} 19. f5 {[%clk 0:01:00]}  gxh4 {[%clk 0:01:37]} 20. fxe6 {[%clk 0:00:59]}  fxe6 {[%clk 0:01:38]} 21. Re2 {[%clk 0:00:46]}  Rhf8 {[%clk 0:01:30]} 22. Re3 {[%clk 0:00:41]}  Rab8 {[%clk 0:01:28]} 23. c4 {[%clk 0:00:36]}  b5 {[%clk 0:01:27]} 24. b4 {[%clk 0:00:34]}  bxc4 {[%clk 0:01:26]} 25. a3 {[%clk 0:00:26]}  a5 {[%clk 0:01:26]} 26. Kc2 {[%clk 0:00:25]}  axb4 {[%clk 0:01:26]} 27. axb4 {[%clk 0:00:26]}  Rxb4 {[%clk 0:01:26]} 28. Ra3 {[%clk 0:00:26]}  d5 {[%clk 0:01:01]} 29. Bxd5 {[%clk 0:00:24]}  exd5 {[%clk 0:01:00]} 30. Rxd5 {[%clk 0:00:25]}  Ne6 {[%clk 0:00:54]} 31. Rxe5 {[%clk 0:00:22]}  Rf2+ {[%clk 0:00:51]} 32. Kc1 {[%clk 0:00:07]}  Kd6 {[%clk 0:00:48]} 33. Re4 {[%clk 0:00:06]}  Nc5 {[%clk 0:00:46]} 34. Rd4+ {[%clk 0:00:04]}  Ke5 {[%clk 0:00:46]} 35. Rd2 {[%clk 0:00:02]}  Rxd2 {[%clk 0:00:38]} 36. Kxd2 {[%clk 0:00:03]}  Kd4 {[%clk 0:00:39]} 37. Rh3 {[%clk 0:00:03]}  Rb2+ {[%clk 0:00:37]} 38. Kd1 {[%clk 0:00:02]}  Rxg2 {[%clk 0:00:38]} 39. Rxh4+ {[%clk 0:00:01]}  Ne4 {[%clk 0:00:39]} 40. Rh3 {[%clk 0:00:02]}  Nf2+ {[%clk 0:00:39]} 0-1


[Site "https://www.chess.com"]

[Event "Titled Tuesday Blitz January 31 Early 2023"]
[White "Mirzoev, Azer"]
[Black "Harsh Suresh"]
[WhiteFideId "13400304"]
[BlackFideId "45018464"]
[WhiteElo "2416"]
[BlackElo "2298"]
[Result "0-1"]
[Round "07"]
[TimeControl "180+2"]
[Date "2023.01.31"]
[WhiteClock "0:00:02"]
[BlackClock "0:00:06"]

1. c4 {[%clk 0:02:58]}  g6 {[%clk 0:02:59]} 2. Nc3 {[%clk 0:02:56]}  Bg7 {[%clk 0:02:59]} 3. g3 {[%clk 0:02:57]}  d6 {[%clk 0:02:58]} 4. Bg2 {[%clk 0:02:58]}  Nf6 {[%clk 0:02:58]} 5. Nf3 {[%clk 0:02:58]}  O-O {[%clk 0:02:58]} 6. O-O {[%clk 0:02:58]}  c6 {[%clk 0:02:59]} 7. d4 {[%clk 0:02:58]}  Bg4 {[%clk 0:02:58]} 8. b3 {[%clk 0:02:57]}  Bxf3 {[%clk 0:02:58]} 9. Bxf3 {[%clk 0:02:57]}  Nbd7 {[%clk 0:02:58]} 10. Bb2 {[%clk 0:02:56]}  Qc7 {[%clk 0:02:58]} 11. e3 {[%clk 0:02:54]}  Rfd8 {[%clk 0:02:57]} 12. Bg2 {[%clk 0:02:54]}  e5 {[%clk 0:02:56]} 13. Rc1 {[%clk 0:02:53]}  Rac8 {[%clk 0:02:55]} 14. Qe2 {[%clk 0:02:47]}  exd4 {[%clk 0:02:51]} 15. exd4 {[%clk 0:02:46]}  Re8 {[%clk 0:02:52]} 16. Qd2 {[%clk 0:02:45]}  Qa5 {[%clk 0:02:49]} 17. Rfd1 {[%clk 0:02:41]}  Qh5 {[%clk 0:02:48]} 18. Qc2 {[%clk 0:02:36]}  Bh6 {[%clk 0:02:30]} 19. Rb1 {[%clk 0:02:35]}  Re6 {[%clk 0:02:23]} 20. Re1 {[%clk 0:02:25]}  Rce8 {[%clk 0:02:21]} 21. Rxe6 {[%clk 0:02:25]}  Rxe6 {[%clk 0:02:20]} 22. h3 {[%clk 0:02:25]}  d5 {[%clk 0:02:01]} 23. Qd3 {[%clk 0:02:22]}  Nb6 {[%clk 0:01:54]} 24. a4 {[%clk 0:02:10]}  Bg7 {[%clk 0:01:44]} 25. Ba3 {[%clk 0:01:59]}  Ne4 {[%clk 0:01:35]} 26. Nxe4 {[%clk 0:01:49]}  dxe4 {[%clk 0:01:36]} 27. Qd1 {[%clk 0:01:49]}  Qf5 {[%clk 0:01:12]} 28. Bc1 {[%clk 0:01:31]}  Rd6 {[%clk 0:01:03]} 29. Be3 {[%clk 0:01:30]}  Bxd4 {[%clk 0:01:01]} 30. Bxd4 {[%clk 0:01:29]}  c5 {[%clk 0:01:01]} 31. Bc3 {[%clk 0:00:47]}  Rxd1+ {[%clk 0:00:55]} 32. Rxd1 {[%clk 0:00:47]}  f6 {[%clk 0:00:54]} 33. Rd8+ {[%clk 0:00:37]}  Kg7 {[%clk 0:00:34]} 34. Rd6 {[%clk 0:00:33]}  e3 {[%clk 0:00:24]} 35. Bxf6+ {[%clk 0:00:16]}  Kh6 {[%clk 0:00:21]} 36. fxe3 {[%clk 0:00:15]}  Nc8 {[%clk 0:00:18]} 37. Rd8 {[%clk 0:00:08]}  Qxf6 {[%clk 0:00:17]} 38. Rxc8 {[%clk 0:00:08]}  Qe6 {[%clk 0:00:17]} 39. Rc7 {[%clk 0:00:07]}  Qxe3+ {[%clk 0:00:17]} 40. Kh2 {[%clk 0:00:07]}  Qxb3 {[%clk 0:00:16]} 41. Rxb7 {[%clk 0:00:08]}  Qxa4 {[%clk 0:00:16]} 42. h4 {[%clk 0:00:07]}  a5 {[%clk 0:00:13]} 43. Bd5 {[%clk 0:00:06]}  Qc2+ {[%clk 0:00:12]} 44. Kh3 {[%clk 0:00:06]}  g5 {[%clk 0:00:11]} 45. Rb6+ {[%clk 0:00:05]}  Kg7 {[%clk 0:00:10]} 46. hxg5 {[%clk 0:00:05]}  a4 {[%clk 0:00:10]} 47. Kh4 {[%clk 0:00:03]}  a3 {[%clk 0:00:08]} 48. Ra6 {[%clk 0:00:03]}  a2 {[%clk 0:00:07]} 49. Ra7+ {[%clk 0:00:03]}  Kf8 {[%clk 0:00:06]} 50. Ra8+ {[%clk 0:00:03]}  Ke7 {[%clk 0:00:06]} 51. Ra7+ {[%clk 0:00:03]}  Kd6 {[%clk 0:00:06]} 52. Bg8 {[%clk 0:00:03]}  Qe4+ {[%clk 0:00:04]} 53. Kh5 {[%clk 0:00:03]}  Qg6+ {[%clk 0:00:04]} 54. Kh4 {[%clk 0:00:03]}  Qxg8 {[%clk 0:00:05]} 55. Ra6+ {[%clk 0:00:02]}  Kc7 {[%clk 0:00:05]} 56. Rxa2 {[%clk 0:00:02]}  Qxc4+ {[%clk 0:00:05]} 57. Kh5 {[%clk 0:00:02]}  Qxa2 {[%clk 0:00:06]} 0-1


[Site "https://www.chess.com"]

[Event "Titled Tuesday Blitz January 31 Early 2023"]
[White "Samant Aditya S"]
[Black "Bartel, Mateusz"]
[WhiteFideId "35080580"]
[BlackFideId "1112635"]
[WhiteElo "2501"]
[BlackElo "2609"]
[Result "1-0"]
[Round "07"]
[TimeControl "180+2"]
[Date "2023.01.31"]
[WhiteClock "0:00:05"]
[BlackClock "0:00:18"]

1. e4 {[%clk 0:03:00]}  c6 {[%clk 0:02:58]} 2. d4 {[%clk 0:02:58]}  d5 {[%clk 0:02:59]} 3. Nc3 {[%clk 0:02:58]}  a6 {[%clk 0:02:56]} 4. Nf3 {[%clk 0:02:41]}  b5 {[%clk 0:02:56]} 5. Bd3 {[%clk 0:02:35]}  e6 {[%clk 0:02:56]} 6. O-O {[%clk 0:02:35]}  Nf6 {[%clk 0:02:56]} 7. e5 {[%clk 0:02:33]}  Nfd7 {[%clk 0:02:56]} 8. Ne2 {[%clk 0:02:34]}  c5 {[%clk 0:02:49]} 9. c3 {[%clk 0:02:35]}  Be7 {[%clk 0:02:50]} 10. Nf4 {[%clk 0:02:18]}  g6 {[%clk 0:02:48]} 11. a3 {[%clk 0:02:14]}  Nc6 {[%clk 0:02:41]} 12. Ne2 {[%clk 0:02:10]}  h5 {[%clk 0:02:39]} 13. Qc2 {[%clk 0:01:43]}  g5 {[%clk 0:02:34]} 14. Qd1 {[%clk 0:01:22]}  Bb7 {[%clk 0:02:31]} 15. Be3 {[%clk 0:01:20]}  Rg8 {[%clk 0:02:10]} 16. Nd2 {[%clk 0:01:03]}  Qb6 {[%clk 0:01:16]} 17. b4 {[%clk 0:01:00]}  c4 {[%clk 0:01:13]} 18. Bh7 {[%clk 0:00:56]}  Rg7 {[%clk 0:01:09]} 19. Bc2 {[%clk 0:00:57]}  f5 {[%clk 0:01:02]} 20. exf6 {[%clk 0:00:54]}  Nxf6 {[%clk 0:01:02]} 21. Ng3 {[%clk 0:00:32]}  h4 {[%clk 0:00:50]} 22. Nh5 {[%clk 0:00:30]}  Nxh5 {[%clk 0:00:51]} 23. Qxh5+ {[%clk 0:00:31]}  Kd7 {[%clk 0:00:52]} 24. Qg4 {[%clk 0:00:29]}  Rag8 {[%clk 0:00:48]} 25. a4 {[%clk 0:00:28]}  Bc8 {[%clk 0:00:46]} 26. Rfe1 {[%clk 0:00:27]}  Kc7 {[%clk 0:00:45]} 27. Qe2 {[%clk 0:00:21]}  Bd6 {[%clk 0:00:45]} 28. Nf3 {[%clk 0:00:15]}  Qb8 {[%clk 0:00:43]} 29. axb5 {[%clk 0:00:14]}  axb5 {[%clk 0:00:42]} 30. Bd2 {[%clk 0:00:12]}  g4 {[%clk 0:00:25]} 31. Ne5 {[%clk 0:00:12]}  g3 {[%clk 0:00:26]} 32. fxg3 {[%clk 0:00:10]}  hxg3 {[%clk 0:00:27]} 33. h3 {[%clk 0:00:10]}  Nxe5 {[%clk 0:00:20]} 34. dxe5 {[%clk 0:00:11]}  Be7 {[%clk 0:00:20]} 35. Be3 {[%clk 0:00:08]}  Kd8 {[%clk 0:00:20]} 36. Ra7 {[%clk 0:00:06]}  Bg5 {[%clk 0:00:18]} 37. Rxg7 {[%clk 0:00:07]}  Rxg7 {[%clk 0:00:17]} 38. Rf1 {[%clk 0:00:06]}  Bxe3+ {[%clk 0:00:17]} 39. Qxe3 {[%clk 0:00:07]}  Qa7 {[%clk 0:00:18]} 40. Rf8+ {[%clk 0:00:05]} 1-0


[Site "https://www.chess.com"]

[Event "Titled Tuesday Blitz January 31 Early 2023"]
[White "Belozerov, Andrei"]
[Black "Rakhmatullaev, Almas"]
[WhiteFideId "4120213"]
[BlackFideId "14205793"]
[WhiteElo "2461"]
[BlackElo "2275"]
[Result "1-0"]
[Round "07"]
[TimeControl "180+2"]
[Date "2023.01.31"]
[WhiteClock "0:00:07"]
[BlackClock "0:00:04"]

1. e4 {[%clk 0:02:54]}  e5 {[%clk 0:02:59]} 2. Nf3 {[%clk 0:02:53]}  Nf6 {[%clk 0:03:00]} 3. Nxe5 {[%clk 0:02:52]}  Nxe4 {[%clk 0:03:00]} 4. Qe2 {[%clk 0:02:51]}  Qe7 {[%clk 0:03:00]} 5. Qxe4 {[%clk 0:02:51]}  d6 {[%clk 0:03:01]} 6. d4 {[%clk 0:02:50]}  dxe5 {[%clk 0:03:02]} 7. dxe5 {[%clk 0:02:50]}  Nc6 {[%clk 0:03:02]} 8. Nc3 {[%clk 0:02:47]}  Qxe5 {[%clk 0:03:01]} 9. Qxe5+ {[%clk 0:02:47]}  Nxe5 {[%clk 0:03:02]} 10. Bf4 {[%clk 0:02:47]}  Bd6 {[%clk 0:03:01]} 11. Bg3 {[%clk 0:02:47]}  f6 {[%clk 0:03:00]} 12. O-O-O {[%clk 0:02:47]}  Bd7 {[%clk 0:02:44]} 13. Nb5 {[%clk 0:02:46]}  Bxb5 {[%clk 0:02:42]} 14. Bxb5+ {[%clk 0:02:45]}  Kf7 {[%clk 0:02:42]} 15. Rhe1 {[%clk 0:02:45]}  Rad8 {[%clk 0:02:28]} 16. f4 {[%clk 0:02:40]}  Ng6 {[%clk 0:02:25]} 17. Bc4+ {[%clk 0:02:38]}  Kf8 {[%clk 0:02:25]} 18. f5 {[%clk 0:02:12]}  Ne7 {[%clk 0:02:19]} 19. Be6 {[%clk 0:02:05]}  h5 {[%clk 0:02:11]} 20. Bxd6 {[%clk 0:02:00]}  cxd6 {[%clk 0:02:12]} 21. h4 {[%clk 0:02:00]}  Rh6 {[%clk 0:01:49]} 22. Re4 {[%clk 0:01:59]}  g6 {[%clk 0:01:46]} 23. Red4 {[%clk 0:01:52]}  d5 {[%clk 0:01:22]} 24. fxg6 {[%clk 0:01:45]}  Rxg6 {[%clk 0:01:19]} 25. Bxd5 {[%clk 0:01:41]}  Nf5 {[%clk 0:01:09]} 26. Re4 {[%clk 0:01:17]}  Rxg2 {[%clk 0:00:49]} 27. Bxb7 {[%clk 0:00:47]}  Rxd1+ {[%clk 0:00:19]} 28. Kxd1 {[%clk 0:00:46]}  Rh2 {[%clk 0:00:20]} 29. Bc8 {[%clk 0:00:27]}  Nxh4 {[%clk 0:00:19]} 30. Re3 {[%clk 0:00:14]}  Rf2 {[%clk 0:00:08]} 31. Rh3 {[%clk 0:00:14]}  Rf4 {[%clk 0:00:06]} 32. Ke2 {[%clk 0:00:12]}  Kg7 {[%clk 0:00:05]} 33. Ba6 {[%clk 0:00:12]}  Kh6 {[%clk 0:00:04]} 34. Bd3 {[%clk 0:00:11]}  Rg4 {[%clk 0:00:03]} 35. c4 {[%clk 0:00:11]}  f5 {[%clk 0:00:03]} 36. c5 {[%clk 0:00:11]}  f4 {[%clk 0:00:04]} 37. c6 {[%clk 0:00:11]}  f3+ {[%clk 0:00:04]} 38. Rxf3 {[%clk 0:00:09]}  Nxf3 {[%clk 0:00:05]} 39. Kxf3 {[%clk 0:00:10]}  Rg7 {[%clk 0:00:04]} 40. Bf5 {[%clk 0:00:09]}  Rc7 {[%clk 0:00:04]} 41. Bd7 {[%clk 0:00:09]}  Kg5 {[%clk 0:00:05]} 42. Ke4 {[%clk 0:00:09]}  h4 {[%clk 0:00:05]} 43. Kd5 {[%clk 0:00:09]}  Kf6 {[%clk 0:00:04]} 44. Kd6 {[%clk 0:00:09]}  h3 {[%clk 0:00:04]} 45. Bxh3 {[%clk 0:00:06]}  Rh7 {[%clk 0:00:04]} 46. Bd7 {[%clk 0:00:07]} 1-0


[Site "https://www.chess.com"]

[Event "Titled Tuesday Blitz January 31 Early 2023"]
[White "Antonica, Dragos-Andrei"]
[Black "Cherniaiev, Tykhon"]
[WhiteFideId "1246372"]
[BlackFideId "14182360"]
[WhiteElo "2373"]
[BlackElo "2330"]
[Result "0-1"]
[Round "07"]
[TimeControl "180+2"]
[Date "2023.01.31"]
[WhiteClock "0:00:04"]
[BlackClock "0:00:25"]

1. d4 {[%clk 0:03:00]}  Nf6 {[%clk 0:02:58]} 2. c4 {[%clk 0:03:00]}  e6 {[%clk 0:02:58]} 3. Nc3 {[%clk 0:03:00]}  d5 {[%clk 0:02:59]} 4. Bg5 {[%clk 0:02:58]}  Be7 {[%clk 0:02:59]} 5. e3 {[%clk 0:02:57]}  O-O {[%clk 0:02:59]} 6. Nf3 {[%clk 0:02:58]}  c5 {[%clk 0:02:58]} 7. cxd5 {[%clk 0:02:58]}  exd5 {[%clk 0:02:57]} 8. Bd3 {[%clk 0:02:58]}  Nc6 {[%clk 0:02:56]} 9. dxc5 {[%clk 0:02:51]}  Bxc5 {[%clk 0:02:55]} 10. O-O {[%clk 0:02:50]}  Be6 {[%clk 0:02:51]} 11. Ne2 {[%clk 0:02:47]}  h6 {[%clk 0:02:47]} 12. Bh4 {[%clk 0:02:46]}  Bg4 {[%clk 0:02:43]} 13. Rc1 {[%clk 0:02:25]}  Bb6 {[%clk 0:02:37]} 14. Bg3 {[%clk 0:02:03]}  Re8 {[%clk 0:02:29]} 15. Qa4 {[%clk 0:01:57]}  Ne4 {[%clk 0:02:25]} 16. Rfd1 {[%clk 0:01:45]}  Qf6 {[%clk 0:02:21]} 17. Nf4 {[%clk 0:01:13]}  Rad8 {[%clk 0:02:10]} 18. Nxd5 {[%clk 0:00:51]}  Rxd5 {[%clk 0:01:45]} 19. Bxe4 {[%clk 0:00:52]}  Ra5 {[%clk 0:01:42]} 20. Qc2 {[%clk 0:00:48]}  Rxa2 {[%clk 0:01:39]} 21. Rd2 {[%clk 0:00:35]}  Ba5 {[%clk 0:01:15]} 22. Re2 {[%clk 0:00:35]}  Nb4 {[%clk 0:01:03]} 23. Qb1 {[%clk 0:00:35]}  Bb6 {[%clk 0:00:52]} 24. h3 {[%clk 0:00:34]}  Bh5 {[%clk 0:00:49]} 25. Rd2 {[%clk 0:00:28]}  Qe7 {[%clk 0:00:48]} 26. Bd5 {[%clk 0:00:21]}  Ra5 {[%clk 0:00:47]} 27. e4 {[%clk 0:00:20]}  Nxd5 {[%clk 0:00:46]} 28. exd5 {[%clk 0:00:19]}  Bg6 {[%clk 0:00:46]} 29. d6 {[%clk 0:00:14]}  Qd7 {[%clk 0:00:44]} 30. Rcc2 {[%clk 0:00:13]}  Rc5 {[%clk 0:00:34]} 31. Ne5 {[%clk 0:00:09]}  Rcxe5 {[%clk 0:00:32]} 32. Bxe5 {[%clk 0:00:09]}  Rxe5 {[%clk 0:00:33]} 33. Qc1 {[%clk 0:00:05]}  Bxc2 {[%clk 0:00:32]} 34. Qxc2 {[%clk 0:00:06]}  Re1+ {[%clk 0:00:28]} 35. Kh2 {[%clk 0:00:06]}  Re6 {[%clk 0:00:28]} 36. Qd3 {[%clk 0:00:06]}  Rxd6 {[%clk 0:00:26]} 37. Qxd6 {[%clk 0:00:05]}  Bc7 {[%clk 0:00:25]} 38. Qxc7 {[%clk 0:00:03]}  Qxc7+ {[%clk 0:00:26]} 39. g3 {[%clk 0:00:04]}  Qc1 {[%clk 0:00:25]} 0-1


[Site "https://www.chess.com"]

[Event "Titled Tuesday Blitz January 31 Early 2023"]
[White "Wong, Yinn Long"]
[Black "Jakubowski, Krzysztof"]
[WhiteFideId "5707684"]
[BlackFideId "1112848"]
[WhiteElo "2371"]
[BlackElo "2486"]
[Result "0-1"]
[Round "07"]
[TimeControl "180+2"]
[Date "2023.01.31"]
[WhiteClock "0:00:09"]
[BlackClock "0:00:06"]

1. e4 {[%clk 0:03:00]}  c5 {[%clk 0:02:53]} 2. Nc3 {[%clk 0:03:00]}  e6 {[%clk 0:02:52]} 3. g3 {[%clk 0:03:01]}  a6 {[%clk 0:02:48]} 4. Bg2 {[%clk 0:03:01]}  b5 {[%clk 0:02:46]} 5. d3 {[%clk 0:02:57]}  Bb7 {[%clk 0:02:46]} 6. Nh3 {[%clk 0:02:56]}  Nc6 {[%clk 0:02:44]} 7. O-O {[%clk 0:02:57]}  d6 {[%clk 0:02:42]} 8. f4 {[%clk 0:02:56]}  Nf6 {[%clk 0:02:41]} 9. f5 {[%clk 0:02:45]}  e5 {[%clk 0:02:39]} 10. Bg5 {[%clk 0:02:34]}  Be7 {[%clk 0:02:35]} 11. Qd2 {[%clk 0:02:22]}  h6 {[%clk 0:02:18]} 12. Bxf6 {[%clk 0:02:20]}  Bxf6 {[%clk 0:02:19]} 13. Nd5 {[%clk 0:02:21]}  Nb8 {[%clk 0:02:04]} 14. Nxf6+ {[%clk 0:02:15]}  Qxf6 {[%clk 0:02:05]} 15. a4 {[%clk 0:02:16]}  b4 {[%clk 0:02:04]} 16. c3 {[%clk 0:01:58]}  Nc6 {[%clk 0:02:00]} 17. Nf2 {[%clk 0:01:57]}  Qg5 {[%clk 0:01:56]} 18. Qxg5 {[%clk 0:01:29]}  hxg5 {[%clk 0:01:55]} 19. f6 {[%clk 0:01:22]}  g6 {[%clk 0:01:51]} 20. Nh3 {[%clk 0:01:07]}  g4 {[%clk 0:01:47]} 21. Nf2 {[%clk 0:01:08]}  Bc8 {[%clk 0:01:46]} 22. Nd1 {[%clk 0:01:09]}  Be6 {[%clk 0:01:36]} 23. Ne3 {[%clk 0:01:08]}  Rb8 {[%clk 0:01:35]} 24. c4 {[%clk 0:00:39]}  b3 {[%clk 0:01:30]} 25. Rf2 {[%clk 0:00:38]}  Nd4 {[%clk 0:01:24]} 26. Ra3 {[%clk 0:00:31]}  Kd7 {[%clk 0:01:23]} 27. Bf1 {[%clk 0:00:25]}  Rh5 {[%clk 0:01:04]} 28. Ra1 {[%clk 0:00:23]}  Nf3+ {[%clk 0:00:48]} 29. Kh1 {[%clk 0:00:23]}  Rbh8 {[%clk 0:00:47]} 30. h3 {[%clk 0:00:20]}  Rxh3+ {[%clk 0:00:43]} 31. Bxh3 {[%clk 0:00:20]}  Rxh3+ {[%clk 0:00:44]} 32. Kg2 {[%clk 0:00:20]}  Rh2+ {[%clk 0:00:44]} 33. Kf1 {[%clk 0:00:20]}  Rh1+ {[%clk 0:00:45]} 34. Ke2 {[%clk 0:00:16]}  Rxa1 {[%clk 0:00:45]} 35. Nd1 {[%clk 0:00:16]}  Rc1 {[%clk 0:00:43]} 36. Rf1 {[%clk 0:00:12]}  Rc2+ {[%clk 0:00:39]} 37. Ke3 {[%clk 0:00:13]}  Rg2 {[%clk 0:00:37]} 38. Rh1 {[%clk 0:00:11]}  Rxg3 {[%clk 0:00:37]} 39. Kf2 {[%clk 0:00:11]}  Rh3 {[%clk 0:00:18]} 40. Rxh3 {[%clk 0:00:11]}  gxh3 {[%clk 0:00:19]} 41. Kxf3 {[%clk 0:00:12]}  a5 {[%clk 0:00:15]} 42. Ne3 {[%clk 0:00:11]}  Ke8 {[%clk 0:00:10]} 43. Kg3 {[%clk 0:00:09]}  Bd7 {[%clk 0:00:10]} 44. Nd5 {[%clk 0:00:03]}  Bxa4 {[%clk 0:00:09]} 45. Kxh3 {[%clk 0:00:03]}  Bd7+ {[%clk 0:00:09]} 46. Kh4 {[%clk 0:00:03]}  a4 {[%clk 0:00:10]} 47. Nc3 {[%clk 0:00:03]}  Kd8 {[%clk 0:00:08]} 48. Kg5 {[%clk 0:00:02]}  Kc7 {[%clk 0:00:08]} 49. Nb1 {[%clk 0:00:02]}  Kb6 {[%clk 0:00:08]} 50. Na3 {[%clk 0:00:03]}  Bh3 {[%clk 0:00:06]} 51. Nb5 {[%clk 0:00:01]}  Kc6 {[%clk 0:00:06]} 52. Na7+ {[%clk 0:00:01]}  Kd7 {[%clk 0:00:06]} 53. Nb5 {[%clk 0:00:01]}  Bf1 {[%clk 0:00:05]} 54. Na3 {[%clk 0:00:01]}  Bxd3 {[%clk 0:00:05]} 55. Kh6 {[%clk 0:00:02]}  Bxe4 {[%clk 0:00:05]} 56. Kg7 {[%clk 0:00:03]}  Ke6 {[%clk 0:00:05]} 57. Nb5 {[%clk 0:00:04]}  a3 {[%clk 0:00:03]} 58. bxa3 {[%clk 0:00:03]}  b2 {[%clk 0:00:03]} 59. Nc7+ {[%clk 0:00:04]}  Kf5 {[%clk 0:00:03]} 60. Kxf7 {[%clk 0:00:04]}  b1=Q {[%clk 0:00:04]} 61. Ne8 {[%clk 0:00:04]}  Qb7+ {[%clk 0:00:03]} 62. Kg8 {[%clk 0:00:04]}  Bc6 {[%clk 0:00:03]} 63. f7 {[%clk 0:00:04]}  Qxf7+ {[%clk 0:00:02]} 64. Kxf7 {[%clk 0:00:04]}  Bxe8+ {[%clk 0:00:03]} 65. Kxe8 {[%clk 0:00:05]}  e4 {[%clk 0:00:04]} 66. a4 {[%clk 0:00:05]}  e3 {[%clk 0:00:04]} 67. a5 {[%clk 0:00:06]}  e2 {[%clk 0:00:05]} 68. a6 {[%clk 0:00:07]}  e1=Q+ {[%clk 0:00:06]} 69. Kd7 {[%clk 0:00:08]}  Qa1 {[%clk 0:00:06]} 70. Kc7 {[%clk 0:00:09]}  Qxa6 {[%clk 0:00:06]} 0-1


[Site "https://www.chess.com"]

[Event "Titled Tuesday Blitz January 31 Early 2023"]
[White "Salimova, Nurgyul"]
[Black "Kosteniuk, Alexandra"]
[WhiteFideId "2915138"]
[BlackFideId "4128125"]
[WhiteElo "2391"]
[BlackElo "2535"]
[Result "1-0"]
[Round "07"]
[TimeControl "180+2"]
[Date "2023.01.31"]
[WhiteClock "0:00:06"]
[BlackClock "0:00:03"]

1. d4 {[%clk 0:03:00]}  f5 {[%clk 0:02:59]} 2. Nf3 {[%clk 0:03:00]}  Nf6 {[%clk 0:03:00]} 3. g3 {[%clk 0:03:00]}  g6 {[%clk 0:03:00]} 4. Bg2 {[%clk 0:03:00]}  Bg7 {[%clk 0:03:01]} 5. O-O {[%clk 0:03:01]}  d6 {[%clk 0:03:02]} 6. c4 {[%clk 0:02:56]}  O-O {[%clk 0:03:02]} 7. d5 {[%clk 0:02:56]}  a5 {[%clk 0:02:59]} 8. Nc3 {[%clk 0:02:54]}  Na6 {[%clk 0:02:58]} 9. Nd4 {[%clk 0:02:49]}  Nc5 {[%clk 0:02:58]} 10. b3 {[%clk 0:02:41]}  Nfe4 {[%clk 0:02:44]} 11. Nxe4 {[%clk 0:02:35]}  fxe4 {[%clk 0:02:45]} 12. Be3 {[%clk 0:02:30]}  Bg4 {[%clk 0:02:36]} 13. Qc2 {[%clk 0:02:28]}  Qd7 {[%clk 0:02:31]} 14. Bxe4 {[%clk 0:02:05]}  Nxe4 {[%clk 0:02:28]} 15. Qxe4 {[%clk 0:02:06]}  Bf5 {[%clk 0:02:21]} 16. Qh4 {[%clk 0:02:06]}  Bh3 {[%clk 0:02:12]} 17. Rfd1 {[%clk 0:01:52]}  Rf7 {[%clk 0:02:12]} 18. Rac1 {[%clk 0:01:48]}  Raf8 {[%clk 0:02:02]} 19. Nf3 {[%clk 0:01:48]}  Bg4 {[%clk 0:01:48]} 20. Ng5 {[%clk 0:01:42]}  Bf6 {[%clk 0:01:48]} 21. f3 {[%clk 0:01:38]}  Bxg5 {[%clk 0:01:35]} 22. Bxg5 {[%clk 0:01:35]}  Bf5 {[%clk 0:01:18]} 23. Bh6 {[%clk 0:01:33]}  Qe8 {[%clk 0:01:02]} 24. e4 {[%clk 0:01:19]}  Bd7 {[%clk 0:01:01]} 25. Bxf8 {[%clk 0:01:19]}  Qxf8 {[%clk 0:01:01]} 26. f4 {[%clk 0:01:19]}  Qg7 {[%clk 0:01:01]} 27. Rd2 {[%clk 0:01:11]}  h6 {[%clk 0:01:01]} 28. c5 {[%clk 0:00:31]}  g5 {[%clk 0:00:31]} 29. fxg5 {[%clk 0:00:30]}  hxg5 {[%clk 0:00:31]} 30. Qh5 {[%clk 0:00:30]}  Qe5 {[%clk 0:00:25]} 31. Qe2 {[%clk 0:00:24]}  Bh3 {[%clk 0:00:15]} 32. Qe3 {[%clk 0:00:23]}  dxc5 {[%clk 0:00:10]} 33. a4 {[%clk 0:00:04]}  Qf6 {[%clk 0:00:08]} 34. Rf2 {[%clk 0:00:03]}  Qxf2+ {[%clk 0:00:08]} 35. Qxf2 {[%clk 0:00:03]}  Rxf2 {[%clk 0:00:09]} 36. Kxf2 {[%clk 0:00:04]}  b6 {[%clk 0:00:10]} 37. Ke3 {[%clk 0:00:04]}  Kf7 {[%clk 0:00:10]} 38. Kf3 {[%clk 0:00:03]}  Bd7 {[%clk 0:00:08]} 39. h4 {[%clk 0:00:04]}  Kg6 {[%clk 0:00:07]} 40. hxg5 {[%clk 0:00:02]}  Kxg5 {[%clk 0:00:08]} 41. Rh1 {[%clk 0:00:02]}  Bg4+ {[%clk 0:00:08]} 42. Ke3 {[%clk 0:00:02]}  Kf6 {[%clk 0:00:07]} 43. Kf4 {[%clk 0:00:02]}  Be2 {[%clk 0:00:07]} 44. e5+ {[%clk 0:00:03]}  Kg6 {[%clk 0:00:07]} 45. Rh8 {[%clk 0:00:02]}  Bd1 {[%clk 0:00:07]} 46. Rc8 {[%clk 0:00:02]}  Bxb3 {[%clk 0:00:07]} 47. Rxc7 {[%clk 0:00:03]}  Bxd5 {[%clk 0:00:05]} 48. Rxe7 {[%clk 0:00:03]}  c4 {[%clk 0:00:06]} 49. Rd7 {[%clk 0:00:03]}  Be6 {[%clk 0:00:05]} 50. Rd6 {[%clk 0:00:03]}  Kf7 {[%clk 0:00:06]} 51. Rxb6 {[%clk 0:00:04]}  Bd7 {[%clk 0:00:06]} 52. Rb7 {[%clk 0:00:04]}  Ke6 {[%clk 0:00:07]} 53. Rc7 {[%clk 0:00:04]}  Bxa4 {[%clk 0:00:06]} 54. Rxc4 {[%clk 0:00:05]}  Be8 {[%clk 0:00:06]} 55. Rc5 {[%clk 0:00:05]}  a4 {[%clk 0:00:06]} 56. Ra5 {[%clk 0:00:06]}  Bd7 {[%clk 0:00:06]} 57. g4 {[%clk 0:00:06]}  Be8 {[%clk 0:00:06]} 58. g5 {[%clk 0:00:06]}  Ke7 {[%clk 0:00:06]} 59. Ra6 {[%clk 0:00:05]}  Kf7 {[%clk 0:00:06]} 60. g6+ {[%clk 0:00:05]}  Kg7 {[%clk 0:00:05]} 61. Kg5 {[%clk 0:00:06]}  Bb5 {[%clk 0:00:03]} 62. Ra7+ {[%clk 0:00:06]} 1-0


[Site "https://www.chess.com"]